bitfinex-derivatives/quotes_ETHF0:USTF0_20250928
["timestamp","ask_amount","ask_price","bid_price","bid_amount"]
[1759052197874,0.53005966,4000.6,4000.5,2.67340265]
[1759052198076,3.2078,4000.7,4000.6,0.7673]
[1759052198977,3.5343,4000.7,4000.6,0.7673]
[1759052199582,3.7608,4000.7,4000.6,0.7673]
[1759052200084,0.7686,4000.7,4000.6,0.7673]
[1759052203882,0.553,4000.7,4000.6,0.7673]
[1759052204071,0.1326,4001.0,4000.6,0.7673]
[1759052204272,0.553,4001.1,4001.0,1.34225]
[1759052204479,0.553,4001.1,4001.0,1.59325]
[1759052204880,0.7686,4001.1,4001.0,1.59325]
[1759052205782,3.2078,4001.2,4001.1,1.21694]
[1759052206777,3.7608,4001.2,4001.1,1.21694]
[1759052207689,0.553,4001.2,4001.1,1.21694]
[1759052211285,0.7686,4001.2,4001.1,1.21694]
[1759052223294,0.7686,4001.2,4000.5,0.1253]
[1759052223502,0.763,4000.6,4000.5,1.00041]
[1759052223690,0.763,4000.6,4000.5,1.25141]
[1759052224100,0.763,4000.6,4000.5,1.45761]
[1759052225495,0.763,4001.0,4000.9,1.20656]
[1759052225690,0.763,4001.0,4000.9,2.53765265]
[1759052229404,0.8944,4001.0,4000.9,2.53765265]
[1759052229898,0.8944,4001.0,4000.9,2.08799265]
[1759052231001,0.8944,4001.0,4000.9,1.74929265]
[1759052231509,0.8944,4001.0,4000.9,2.08629265]
[1759052235198,0.8944,4001.0,4000.6,1.41709265]
[1759052235404,0.7608,4000.7,4000.6,2.29689265]
[1759052235701,0.7608,4000.7,4000.6,2.54789265]
[1759052240211,0.2249,4001.0,4000.9,0.44966]
[1759052240510,3.2078,4001.2,4001.1,0.4301]
[1759052240712,3.73751345,4001.2,4001.1,0.6811]
[1759052240907,4.27291345,4001.2,4001.1,1.0181]
[1759052241211,4.27291345,4001.2,4001.1,1.46774]
[1759052242609,4.27291345,4001.2,4001.1,2.33379346]
[1759052243012,0.3105,4001.8,4001.1,1.99679346]
[1759052243206,0.52960615,4001.7,4001.6,1.21667]
[1759052243509,1.27740615,4001.7,4001.6,1.46767]
[1759052244708,0.74100615,4001.7,4001.6,1.46767]
[1759052245007,1.06580615,4001.7,4001.6,1.46767]
[1759052247009,0.52960615,4001.7,4001.6,6.48985215]
[1759052247215,3.744,4002.2,4002.1,1.21493]
[1759052247415,3.744,4002.2,4002.1,2.33198346]
[1759052248113,3.4192,4002.2,4002.1,2.33198346]
[1759052248317,3.744,4002.2,4002.1,2.33198346]
[1759052249421,3.9556,4002.2,4002.1,2.33198346]
[1759052250110,0.7478,4002.2,4002.1,2.33198346]
[1759052252814,0.87908701,4002.5,4002.4,0.44949]
[1759052253016,0.74978701,4002.5,4002.4,2.33194346]
[1759052254517,0.87638701,4002.5,4002.4,2.00614346]
[1759052255019,0.87638701,4002.5,4002.4,2.33194346]
[1759052258218,0.5362,4002.2,4001.8,0.86605346]
[1759052258519,0.7478,4001.9,4001.8,1.85681346]
[1759052258724,0.7478,4001.9,4001.8,2.33201346]
[1759052264034,0.5362,4001.9,4001.8,2.33201346]
[1759052267734,0.7478,4002.3,4002.2,1.21492]
[1759052267938,1.19731,4002.3,4002.2,1.0164]
[1759052269339,1.7238189,4002.3,4002.2,1.0164]
[1759052269633,1.5122189,4002.3,4002.2,1.0164]
[1759052269836,1.0627089,4002.3,4002.2,1.46592]
[1759052270036,1.2743089,4002.3,4002.2,1.46592]
[1759052271238,1.7238189,4002.3,4002.2,1.46592]
[1759052272538,1.7238189,4002.3,4002.2,0.4664]
[1759052272736,1.7238189,4002.3,4002.2,0.251]
[1759052273041,1.19732,4002.2,4002.1,0.86605346]
[1759052273233,1.19733,4002.1,4002.0,0.44954]
[1759052273435,1.7238389,4002.1,4002.0,0.70054]
[1759052273836,1.7238389,4002.1,4002.0,0.90734]
[1759052274535,1.7238389,4002.1,4002.0,0.65634]
[1759052274841,1.2743089,4002.1,4002.0,0.90734]
[1759052275031,1.2743089,4002.1,4002.0,1.23554]
[1759052277245,1.2743089,4002.1,4002.0,0.4578]
[1759052277449,1.2743089,4002.1,4002.0,0.251]
[1759052278050,0.8736,4002.0,4001.9,0.65635]
[1759052278248,1.4001089,4002.0,4001.9,1.23555]
[1759052278849,1.4001089,4002.0,4001.9,0.70055]
[1759052279752,1.4001089,4002.0,4001.9,0.90735]
[1759052280356,1.4001089,4002.0,4001.9,0.65635]
[1759052280542,1.4001089,4002.0,4001.9,0.90735]
[1759052281050,1.4001089,4002.0,4001.9,1.23555]
[1759052282545,1.4001089,4002.0,4001.9,0.98455]
[1759052282853,1.4001089,4002.0,4001.9,0.70055]
[1759052283150,1.4001089,4002.0,4001.9,1.23555]
[1759052283351,1.4001089,4002.0,4001.9,0.98455]
[1759052283754,1.4001089,4002.0,4001.9,0.65635]
[1759052283950,1.8496489,4002.0,4001.9,0.44955]
[1759052285556,1.4001089,4002.0,4001.9,0.44955]
[1759052286052,1.8496489,4002.0,4001.9,0.44955]
[1759052287555,0.5265089,4002.0,4001.9,1.19335]
[1759052287854,0.52684314,4002.1,4002.0,1.31854]
[1759052288055,0.52684314,4002.1,4002.0,1.56954]
[1759052288448,0.74724314,4002.1,4002.0,1.56954]
[1759052288752,1.05714314,4002.1,4002.0,1.56954]
[1759052289547,1.72157314,4002.1,4002.0,1.44434]
[1759052289861,1.72157314,4002.1,4002.0,0.90734]
[1759052290056,1.27204314,4002.1,4002.0,0.90734]
[1759052290261,1.27204314,4002.1,4002.0,1.22504]
[1759052290558,1.27204314,4002.1,4002.0,1.44024]
[1759052292062,0.74724314,4002.1,4002.0,1.57574]
[1759052293960,0.52684314,4002.1,4002.0,1.57574]
[1759052297365,0.86534314,4002.1,4002.0,1.57574]
[1759052297565,1.07104314,4002.1,4002.0,1.57574]
[1759052301778,1.27704314,4002.1,4002.0,1.44024]
[1759052305272,0.57535,4002.0,4001.6,0.319]
[1759052305573,0.7543,4001.7,4001.6,0.98098]
[1759052305774,1.28114314,4001.7,4001.6,1.23198]
[1759052306175,1.28114314,4001.7,4001.6,1.45938]
[1759052307270,1.28114314,4001.7,4001.6,0.91298]
[1759052308263,1.28114314,4001.7,4001.6,1.23198]
[1759052308880,1.28114314,4001.7,4001.6,0.98098]
[1759052309176,1.28114314,4001.7,4001.6,1.23198]
[1759052309477,1.28114314,4001.7,4001.6,0.66198]
[1759052309780,1.28114314,4001.7,4001.6,0.70058]
[1759052310278,1.28114314,4001.7,4001.6,0.91298]
[1759052310582,1.28114314,4001.7,4001.6,1.23198]
[1759052312482,1.28114314,4001.7,4001.6,1.45938]
[1759052312868,1.07084314,4001.7,4001.6,1.45938]
[1759052313078,0.52684314,4001.7,4001.6,1.45938]
[1759052313273,0.4229,4001.9,4001.8,1.20836]
[1759052313485,0.94948801,4001.9,4001.8,1.20836]
[1759052313672,1.28088801,4001.9,4001.8,1.20836]
[1759052315288,1.73043801,4001.9,4001.8,1.20836]
[1759052316886,1.28088801,4001.9,4001.8,1.20836]
[1759052317390,0.4229,4001.6,4001.5,0.44959]
[1759052317592,1.28088801,4001.6,4001.5,1.23199]
[1759052318091,1.28088801,4001.6,4001.5,1.45939]
[1759052318485,1.28088801,4001.6,4001.5,1.2084]
[1759052318682,1.28088801,4001.6,4001.5,0.662]
[1759052318879,1.28088801,4001.6,4001.3,0.319]
[1759052319086,0.7543,4000.9,4000.8,0.91307]
[1759052319389,3.7518,4001.4,4001.3,1.20842]
[1759052319688,3.7340767,4001.4,4001.3,2.53830771]
[1759052321490,3.2078,4001.4,4001.3,2.53830771]
[1759052324684,3.9621,4001.4,4001.3,0.98102]
[1759052324990,3.9621,4001.4,4001.3,0.91302]
[1759052325490,3.9621,4001.4,4001.3,1.23202]
[1759052325691,3.9621,4001.4,4001.3,0.70062]
[1759052327691,3.9621,4001.4,4001.3,1.23202]
[1759052327886,3.9621,4001.4,4001.3,2.53830771]
[1759052329196,4.48846633,4001.4,4001.3,2.53830771]
[1759052332699,3.94676633,4001.4,4001.3,2.53830771]
[1759052332900,3.73416633,4001.4,4001.3,2.53830771]
[1759052333094,4.27816633,4001.4,4001.3,1.45942]
[1759052334497,4.48846633,4001.4,4001.3,1.45942]
[1759052334794,1.28066633,4001.4,4001.3,1.45942]
[1759052337497,1.28066633,4001.4,4001.3,1.24492]
[1759052337704,1.28066633,4001.4,4001.3,1.46052]
[1759052346305,1.07036633,4001.4,4001.3,1.46052]
[1759052347101,0.52636633,4001.4,4001.3,1.46052]
[1759052347699,1.06396633,4001.4,4001.3,1.46052]
[1759052347895,1.27416633,4001.4,4001.3,0.70062]
[1759052349106,0.7478,4001.1,4001.0,0.66355]
[1759052349308,1.27416633,4001.1,4001.0,0.91455]
[1759052350311,1.27416633,4001.1,4001.0,0.70065]
[1759052350611,0.8709,4001.0,4000.9,5.02218215]
[1759052350812,1.39726633,4001.0,4000.9,5.27318215]
[1759052351108,1.39726633,4001.0,4000.9,5.49828215]
[1759052351309,1.39726633,4001.0,4000.9,6.28214215]
[1759052352313,1.39726633,4001.0,4000.9,1.25996]
[1759052353409,1.26826633,4001.0,4000.9,1.48576]
[1759052353814,0.7419,4001.0,4000.9,1.48576]
[1759052354506,0.1352,4001.5,4001.4,1.23471]
[1759052354507,0.7419,4001.5,4001.4,1.23471]
[1759052354707,1.26869123,4001.5,4001.4,2.56459771]
[1759052356817,1.39769123,4001.5,4001.4,2.56459771]
[1759052357014,1.39769123,4001.5,4001.4,1.48571]
[1759052358211,1.26869123,4001.5,4001.4,1.48571]
[1759052359214,1.39769123,4001.5,4001.4,1.48571]
[1759052359911,1.26869123,4001.5,4001.4,1.48571]
[1759052360113,0.74519123,4001.5,4001.4,2.56459771]
[1759052360407,1.05889123,4001.5,4001.4,2.56459771]
[1759052361214,1.26869123,4001.5,4001.4,2.56459771]
[1759052364511,1.26869123,4001.5,4001.4,1.48571]
[1759052364716,1.26869123,4001.5,4001.4,2.35170369]
[1759052365014,1.26869123,4001.5,4001.4,2.10070369]
[1759052365214,1.26869123,4001.5,4001.4,2.35170369]
[1759052365408,1.26869123,4001.5,4001.4,2.10070369]
[1759052365604,1.84949123,4001.5,4001.4,0.86599369]
[1759052365808,1.84949123,4001.5,4001.4,1.34129369]
[1759052366016,1.84949123,4001.5,4001.4,1.67589369]
[1759052366315,1.39989123,4001.5,4001.4,2.12550369]
[1759052366515,1.84949123,4001.5,4001.4,2.12550369]
[1759052367216,1.84949123,4001.5,4001.4,1.89979369]
[1759052367519,1.84949123,4001.5,4001.4,1.34129369]
[1759052368513,0.4192,4001.3,4000.9,0.78426]
[1759052368716,0.749,4001.0,4000.9,1.00856]
[1759052369019,0.749,4001.0,4000.9,1.48346]
[1759052369211,0.5391,4001.0,4000.9,1.48346]
[1759052370211,0.5391,4001.0,4000.9,1.0338]
[1759052370407,0.5391,4001.0,4000.9,1.89979369]
[1759052371618,1.06593936,4001.0,4000.9,1.89979369]
[1759052373420,0.97648936,4001.0,4000.9,1.89979369]
[1759052373821,1.30628936,4001.0,4000.9,1.89979369]
[1759052374126,0.85663936,4001.0,4000.9,2.34945369]
[1759052374311,0.85663936,4001.0,4000.9,1.0338]
[1759052374622,1.30628936,4001.0,4000.9,2.34945369]
[1759052375023,0.3298,4001.5,4001.4,0.2243]
[1759052375324,3.2078,4001.6,4001.5,1.3622]
[1759052375516,4.27375356,4001.6,4001.5,0.9126]
[1759052375821,4.48365356,4001.6,4001.5,0.7828]
[1759052376518,3.73465356,4001.6,4001.5,0.9126]
[1759052376918,4.48365356,4001.6,4001.5,0.7828]
[1759052377522,4.48365356,4001.6,4001.5,1.0338]
[1759052377722,4.48365356,4001.6,4001.5,0.4753]
[1759052378427,4.48365356,4001.6,4001.5,0.8099]
[1759052378619,0.44961,4001.4,4001.2,0.78422]
[1759052378818,1.19861,4001.4,4001.3,1.11699369]
[1759052379122,1.72542011,4001.4,4001.3,1.34129369]
[1759052379324,1.72542011,4001.4,4001.3,1.67589369]
[1759052379816,1.27581011,4001.4,4001.3,1.67589369]
[1759052383720,1.27581011,4001.4,4001.3,1.89979369]
[1759052384629,1.27581011,4001.4,4001.3,1.64879369]
[1759052384817,1.27581011,4001.4,4001.3,1.89979369]
[1759052390134,1.72542011,4001.4,4001.3,1.89979369]
[1759052390433,1.72542011,4001.4,4001.3,2.34941369]
[1759052390634,1.27581011,4001.4,4001.3,2.34941369]
[1759052390833,1.06591011,4001.4,4001.3,2.34941369]
[1759052391035,0.52681011,4001.4,4001.3,2.34941369]
[1759052392632,0.3298,4002.0,4001.9,0.5589]
[1759052392838,1.06627636,4002.0,4001.9,1.64879369]
[1759052393037,1.51581636,4002.0,4001.9,1.64879369]
[1759052394449,1.18601636,4002.0,4001.9,2.09834369]
[1759052395249,0.73647636,4002.0,4001.9,2.09834369]
[1759052395641,1.04877636,4002.0,4001.9,2.09834369]
[1759052396048,0.52717636,4002.0,4001.9,2.09834369]
[1759052398149,3.2078,4002.1,4001.9,2.09834369]
[1759052398346,3.5201,4002.1,4002.0,0.5516]
[1759052398544,4.04692611,4002.1,4002.0,0.8719]
[1759052398848,4.25882611,4002.1,4002.0,0.8719]
[1759052399048,3.73462611,4002.1,4002.0,0.8719]
[1759052401153,3.73484094,4002.1,4002.0,0.8719]
[1759052401355,0.52704094,4002.1,4002.0,0.8719]
[1759052401651,0.74888701,4002.5,4002.4,1.1883]
[1759052401857,1.27581232,4002.5,4002.4,1.4393]
[1759052402148,1.40911232,4002.5,4002.4,1.4393]
[1759052404752,1.40911232,4002.5,4002.4,0.9898]
[1759052405051,1.85859232,4002.5,4002.4,0.9898]
[1759052410258,1.85859232,4002.5,4002.4,1.4393]
[1759052411859,1.40911232,4002.5,4002.4,1.4393]
[1759052412059,1.85859232,4002.5,4002.4,1.4393]
[1759052413855,1.40911232,4002.5,4002.4,1.4393]
[1759052414258,1.85859232,4002.5,4002.4,1.4393]
[1759052414662,1.40911232,4002.5,4002.4,1.4393]
[1759052415262,1.85859232,4002.5,4002.4,1.4393]
[1759052415759,1.27581232,4002.5,4002.4,1.4393]
[1759052416655,1.72529232,4002.5,4002.4,1.4393]
[1759052417455,1.27581232,4002.5,4002.4,1.4393]
[1759052417652,1.72529232,4002.5,4002.4,1.4393]
[1759052418063,1.72529232,4002.5,4002.4,1.85579369]
[1759052418263,1.84869232,4002.5,4002.4,1.85579369]
[1759052420162,1.84869232,4002.5,4002.4,2.30528369]
[1759052422572,1.39921232,4002.5,4002.4,2.30528369]
[1759052422870,1.27581232,4002.5,4002.4,2.30528369]
[1759052423369,0.52891232,4002.5,4002.4,2.30528369]
[1759052423572,0.00198701,4002.5,4002.4,2.30528369]
[1759052426570,0.00198701,4002.5,4002.4,2.51767899]
[1759052427874,0.00198701,4002.5,4002.4,1.43929]
[1759052428176,0.00198701,4002.5,4002.4,2.51767899]
[1759052429073,0.52998701,4002.5,4002.4,2.51767899]
[1759052429976,0.00198701,4002.5,4002.4,2.51767899]
[1759052431074,0.31238701,4002.5,4002.4,2.51767899]
[1759052432774,0.00198701,4002.5,4002.4,2.51767899]
[1759052440385,0.87998701,4002.5,4002.4,0.6581]
[1759052440681,0.74988701,4002.5,4002.4,1.4363]
[1759052442091,0.74988701,4002.5,4002.4,1.1853]
[1759052442279,0.87998701,4002.5,4002.4,1.4363]
[1759052442586,0.74988701,4002.5,4002.4,1.4363]
[1759052442776,0.87998701,4002.5,4002.4,2.51468899]
[1759052443176,0.74988701,4002.5,4002.4,2.26368899]
[1759052443379,0.74988701,4002.5,4002.4,2.51468899]
[1759052446591,0.00198701,4002.5,4002.4,2.51468899]
[1759052452882,0.31238701,4002.5,4002.4,2.51468899]
[1759052453695,0.87548701,4002.5,4002.4,1.1853]
[1759052454189,1.40217898,4002.5,4002.4,1.4363]
[1759052454392,0.83907898,4002.5,4002.4,1.4363]
[1759052454581,0.31238701,4002.5,4002.4,1.4363]
[1759052454785,0.52388701,4002.5,4002.4,1.4363]
[1759052454983,0.00198701,4002.5,4002.4,1.4363]
[1759052459193,0.77058701,4002.5,4002.4,1.1853]
[1759052459395,0.77058701,4002.5,4002.4,2.51468899]
[1759052460195,1.42367344,4002.5,4002.4,2.51468899]
[1759052460697,1.42367344,4002.5,4002.4,2.26368899]
[1759052460891,1.42367344,4002.5,4002.4,1.50328899]
[1759052461094,0.7686,4002.3,4002.2,3.86752]
[1759052461400,1.29528643,4002.3,4002.2,4.45182]
[1759052461696,1.29528643,4002.3,4002.2,3.2078]
[1759052461901,1.29528643,4002.3,4002.2,0.251]
[1759052462497,1.29528643,4002.3,4002.2,0.4612]
[1759052464505,0.557,4002.0,4001.9,0.2102]
[1759052464686,1.08368643,4002.0,4001.9,0.4612]
[1759052464887,0.44958,4001.7,4001.5,0.3333]
[1759052465091,0.7686,4001.6,4001.5,0.2102]
[1759052465294,0.7686,4001.6,4001.5,0.251]
[1759052465898,0.7686,4001.6,4001.5,0.4612]
[1759052466098,0.7686,4001.6,4001.5,0.7945]
[1759052467008,0.7686,4001.6,4001.5,1.0]
[1759052467195,0.5495,4001.6,4001.5,1.133]
[1759052467392,0.7686,4001.6,4001.5,1.0]
[1759052469402,1.00655,4002.0,4001.9,0.5435]
[1759052469604,1.53214761,4002.0,4001.9,0.7945]
[1759052469997,1.87014761,4002.0,4001.9,0.7945]
[1759052470805,1.42059761,4002.0,4001.9,0.7945]
[1759052471500,1.42059761,4002.0,4001.9,0.4612]
[1759052474097,1.42059761,4002.0,4001.9,0.7991]
[1759052475004,0.00198701,4002.5,4002.4,1.2209]
[1759052475202,0.00198701,4002.5,4002.4,2.55028899]
[1759052487119,0.00198701,4002.5,4002.4,1.4719]
[1759052487322,0.00198701,4002.5,4002.4,2.55028899]
[1759052488619,0.00198701,4002.5,4002.4,2.33724282]
[1759052489829,0.75948701,4002.5,4002.4,1.2209]
[1759052490129,0.75948701,4002.5,4002.4,2.33724282]
[1759052490330,0.75948701,4002.5,4002.4,1.4719]
[1759052490536,0.75948701,4002.5,4002.4,2.33724282]
[1759052491128,0.75948701,4002.5,4002.4,2.08624282]
[1759052491334,0.75948701,4002.5,4002.4,2.33724282]
[1759052493339,0.00198701,4002.5,4002.4,2.33724282]
[1759052493635,3.2078,4003.1,4003.0,0.44943]
[1759052493827,3.2078,4003.1,4003.0,1.58993]
[1759052494635,3.2078,4003.6,4003.0,1.26112898]
[1759052494829,3.2078,4004.1,4004.0,1.20952]
[1759052495024,3.20960328,4004.1,4004.0,3.32150564]
[1759052495323,3.20960328,4004.1,4004.0,2.45616282]
[1759052495527,3.20960328,4004.1,4004.0,3.32150564]
[1759052497128,3.20960328,4004.1,4004.0,2.45616282]
[1759052497640,3.74310328,4004.1,4004.0,2.45616282]
[1759052498030,3.43150328,4004.1,4004.0,2.45616282]
[1759052499236,3.74310328,4004.1,4004.0,2.45616282]
[1759052499644,3.96710328,4004.1,4004.0,1.46152]
[1759052499842,3.96710328,4004.1,4004.0,2.32686282]
[1759052503540,0.4414,4004.0,4003.9,0.86534282]
[1759052503745,0.8873,4004.0,4003.9,1.11734282]
[1759052504243,0.8873,4004.0,4003.9,1.56667282]
[1759052512053,0.8873,4004.0,4003.9,1.77567282]
[1759052512645,1.7907919,4005.5,4005.4,0.65816]
[1759052512854,3.4297,4005.9,4005.8,0.7602]
[1759052513151,3.4297,4005.9,4005.8,1.62554282]
[1759052513152,3.95367394,4005.9,4005.8,1.62554282]
[1759052513354,3.95367394,4005.9,4005.8,1.87854282]
[1759052513655,3.95552886,4005.9,4005.8,1.87854282]
[1759052514154,3.43155492,4005.9,4005.8,1.87854282]
[1759052517256,3.65525492,4005.9,4005.8,1.87854282]
[1759052518058,3.89725492,4005.9,4005.8,1.65884282]
[1759052518448,3.65525492,4005.9,4005.8,2.10795282]
[1759052519957,3.65525492,4005.9,4005.8,2.31355282]
[1759052522755,3.20965492,4005.9,4005.8,2.31355282]
[1759052522958,3.65245492,4005.9,4005.8,2.31355282]
[1759052523155,3.65245492,4005.9,4005.8,2.06055282]
[1759052523361,3.65245492,4005.9,4005.8,2.31355282]
[1759052524249,3.73317722,4005.9,4005.8,2.31355282]
[1759052524560,4.17597722,4005.9,4005.8,2.31355282]
[1759052525257,4.41797722,4005.9,4005.8,2.31355282]
[1759052526263,4.17597722,4005.9,4005.8,2.31355282]
[1759052527865,4.17597722,4005.9,4005.8,2.06055282]
[1759052528066,4.17597722,4005.9,4005.8,2.31355282]
[1759052528370,4.41797722,4005.9,4005.8,1.89895282]
[1759052530376,4.41797722,4005.9,4005.8,2.11985282]
[1759052531273,4.41797722,4005.9,4005.6,0.3351]
[1759052531472,1.11832,4005.7,4005.6,0.3351]
[1759052531678,0.6692,4005.5,4005.4,1.64959282]
[1759052531879,0.6692,4005.5,4005.4,1.90259282]
[1759052532077,1.19269336,4005.5,4005.4,1.90259282]
[1759052532274,0.6692,4005.5,4005.4,1.90259282]
[1759052532478,1.19278205,4005.5,4005.4,2.11259282]
[1759052532972,1.64193205,4005.5,4005.4,2.11259282]
[1759052533174,1.64193205,4005.5,4005.4,0.99425]
[1759052533375,1.64193205,4005.5,4005.4,0.5881]
[1759052533879,0.6692,4005.1,4005.0,0.6744]
[1759052534179,0.6692,4005.1,4005.0,2.24194282]
[1759052534370,0.4275,4005.1,4005.0,2.24194282]
[1759052534773,0.4275,4005.1,4005.0,1.3766]
[1759052534979,1.11839,4005.1,4005.0,1.3766]
[1759052536579,0.6692,4005.1,4005.0,1.3766]
[1759052536780,0.4275,4005.1,4005.0,1.5898]
[1759052536982,3.2078,4005.3,4005.2,0.87238]
[1759052537277,3.2078,4005.3,4005.2,2.07282282]
[1759052540179,3.73257622,4005.3,4005.2,2.07282282]
[1759052541385,3.94197622,4005.3,4005.2,2.07282282]
[1759052541879,4.40177622,4005.3,4005.2,2.07282282]
[1759052542084,4.85094622,4005.3,4005.2,2.07282282]
[1759052542282,4.60924622,4005.3,4005.2,2.07282282]
[1759052542678,4.61002037,4005.3,4005.2,2.07282282]
[1759052542874,4.85172037,4005.3,4005.2,1.03728]
[1759052543379,4.40255037,4005.3,4005.2,1.24728]
[1759052543584,4.16085037,4005.3,4005.2,1.24728]
[1759052544181,4.16085037,4005.3,4005.2,1.45898]
[1759052545890,4.61002037,4005.3,4005.2,1.45898]
[1759052547186,4.16085037,4005.3,4005.2,1.45898]
[1759052548188,4.40255037,4005.3,4005.2,1.45898]
[1759052548589,4.85172037,4005.3,4005.2,1.45898]
[1759052548782,4.85172037,4005.3,4005.2,1.24728]
[1759052549287,4.85172037,4005.3,4005.0,1.64744282]
[1759052549288,1.13019,4005.1,4005.0,1.64744282]
[1759052549488,1.65574037,4005.1,4005.0,1.90044282]
[1759052549875,1.65574037,4005.1,4005.0,2.24644282]
[1759052550591,1.65574037,4005.1,4005.0,1.3811]
[1759052551589,1.65574037,4005.1,4005.0,0.3329]
[1759052551793,1.65574037,4005.1,4005.0,0.5859]
[1759052552181,0.2417,4005.0,4004.8,0.3329]
[1759052552389,1.12298,4005.2,4004.5,1.12176]
[1759052552390,1.13025,4004.6,4004.5,1.12176]
[1759052552690,1.13025,4004.6,4004.5,1.37476]
[1759052553889,1.65544604,4004.6,4004.5,1.37476]
[1759052554093,1.13025,4004.6,4004.5,1.37476]
[1759052554588,3.2078,4005.3,4005.2,0.7549]
[1759052554788,3.73293854,4005.3,4005.2,2.0852586]
[1759052555384,3.2078,4005.3,4005.2,2.0852586]
[1759052555584,3.6471,4005.3,4005.2,1.0079]
[1759052555787,3.8888,4005.3,4005.2,1.0079]
[1759052555998,4.17221564,4005.3,4005.2,1.0079]
[1759052559995,4.17221564,4005.3,4005.0,0.1357]
[1759052559996,0.2117,4005.1,4005.0,0.1357]
[1759052560294,1.20611564,4005.1,4005.0,0.3329]
[1759052561089,0.681,4005.0,4004.9,1.03511]
[1759052561289,1.20611564,4005.0,4004.9,1.03511]
[1759052561696,1.65531564,4005.0,4004.9,1.24541]
[1759052561898,0.96441564,4005.0,4004.9,1.45711]
[1759052565197,0.96441564,4005.0,4004.9,1.20411]
[1759052565402,1.65531564,4005.0,4004.9,0.7549]
[1759052565596,1.65531564,4005.0,4004.9,0.5432]
[1759052565900,1.65531564,4005.0,4004.9,0.99241]
[1759052569902,1.65531564,4005.0,4004.9,0.5432]
[1759052574105,1.65531564,4005.0,4004.9,0.99241]
[1759052574405,1.65531564,4005.0,4004.9,0.5432]
[1759052575797,1.65531564,4005.0,4004.9,0.3329]
[1759052576001,1.13625,4004.7,4004.6,0.76435]
[1759052576306,1.66136564,4004.7,4004.6,0.76435]
[1759052576906,1.66136564,4004.7,4004.6,0.98565]
[1759052580707,1.66136564,4004.7,4004.6,0.5364]
[1759052580905,1.66136564,4004.7,4004.6,0.98565]
[1759052581911,0.4452,4004.4,4004.3,0.44928]
[1759052582111,0.687,4004.4,4004.3,0.70228]
[1759052582401,0.97031564,4004.4,4004.3,1.44678]
[1759052583398,0.75061564,4004.4,4004.3,1.44678]
[1759052583706,0.75061564,4004.4,4004.3,2.5241386]
[1759052583900,0.52511564,4004.4,4004.3,2.5241386]
[1759052584106,3.2078,4004.8,4004.7,1.19374]
[1759052584305,3.73247154,4004.8,4004.7,2.2710986]
[1759052598518,3.95357154,4004.8,4004.7,2.2710986]
[1759052609521,3.95357154,4004.8,4004.7,1.19374]
[1759052609722,4.18067154,4004.8,4004.7,2.2710986]
[1759052610623,4.18067154,4004.8,4004.7,2.05825539]
[1759052613325,4.18101639,4004.8,4004.7,2.05825539]
[1759052613726,0.97321639,4004.8,4004.7,2.05825539]
[1759052617228,0.52501639,4004.8,4004.7,2.05825539]
[1759052618424,0.73821639,4004.8,4004.7,2.05825539]
[1759052620025,0.73821639,4004.8,4004.7,2.31025539]
[1759052622528,0.52501639,4004.8,4004.7,2.31025539]
[1759052636759,0.52501639,4004.8,4004.7,2.05825539]
[1759052637057,0.52501639,4004.8,4004.7,2.30925539]
[1759052637558,1.19691639,4004.8,4004.7,2.30925539]
[1759052641154,1.12114,4004.7,4004.5,0.44926]
[1759052641355,1.19691639,4004.6,4004.5,0.44926]
[1759052641552,1.19691639,4004.6,4004.5,1.03676]
[1759052641752,0.52501639,4004.6,4004.5,1.59836]
[1759052642054,0.2149,4005.2,4005.1,1.21109]
[1759052642357,0.74027336,4005.2,4005.1,2.07560539]
[1759052643360,1.18945336,4005.2,4005.1,2.07560539]
[1759052643556,1.40465336,4005.2,4005.1,2.07560539]
[1759052646259,1.64645336,4005.2,4005.1,1.62641539]
[1759052646559,1.64645336,4005.2,4005.1,2.07560539]
[1759052648162,1.64645336,4005.2,4005.1,1.62641539]
[1759052648359,1.64645336,4005.2,4005.1,2.07560539]
[1759052648559,1.64645336,4005.2,4005.1,1.62641539]
[1759052648962,1.64645336,4005.2,4005.1,2.07560539]
[1759052650254,1.40465336,4005.2,4005.1,2.07560539]
[1759052652866,1.40465336,4005.2,4005.1,0.7619]
[1759052653164,1.64685336,4005.2,4005.1,0.7619]
[1759052657460,1.40465336,4005.2,4005.1,0.7619]
[1759052658365,0.4352,4004.7,4004.6,0.2126]
[1759052658564,1.65201336,4004.7,4004.6,1.65901539]
[1759052658764,1.40981336,4004.7,4004.6,1.88611539]
[1759052659873,1.40981336,4004.7,4004.6,2.33536539]
[1759052660270,1.19471336,4004.7,4004.6,2.33536539]
[1759052661972,1.40981336,4004.7,4004.6,0.7706]
[1759052662173,1.40981336,4004.7,4004.6,1.0216]
[1759052662761,1.40981336,4004.7,4004.6,1.47085]
[1759052665570,1.19471336,4004.7,4004.6,1.47085]
[1759052665775,0.97461336,4004.7,4004.6,1.47085]
[1759052668077,0.52537336,4004.7,4004.6,1.47085]
[1759052668473,0.97461336,4004.7,4004.6,1.47085]
[1759052672875,0.52537336,4004.7,4004.6,1.47085]
[1759052673081,0.4492,4005.1,4005.0,1.3482]
[1759052673283,0.97632198,4005.1,4005.0,2.42565468]
[1759052673475,0.97632198,4005.1,4005.0,2.67665468]
[1759052674280,0.97632198,4005.1,4005.0,2.22745468]
[1759052674470,1.20252198,4005.1,4005.0,2.22745468]
[1759052675181,1.20252198,4005.1,4005.0,1.15]
[1759052675381,1.41602198,4005.1,4005.0,1.15]
[1759052679477,1.41602198,4005.1,4005.0,1.5992]
[1759052684288,1.41602198,4005.1,4005.0,1.15]
[1759052685082,1.65832198,4005.1,4005.0,0.6739]
[1759052685284,1.65832198,4005.1,4005.0,0.3209]
[1759052687187,0.44925,4004.7,4004.6,0.44925]
[1759052687389,1.65837198,4004.7,4004.6,0.92315]
[1759052687590,1.65837198,4004.7,4004.6,0.2229]
[1759052687790,1.65837198,4004.7,4004.6,0.7948]
[1759052687985,1.65837198,4004.7,4004.6,0.3209]
[1759052688294,1.65837198,4004.7,4004.3,3.2078]
[1759052688295,1.13127,4004.4,4004.3,3.7797]
[1759052688499,1.65839198,4004.4,4004.3,3.5287]
[1759052688699,1.65839198,4004.4,4004.3,0.3209]
[1759052688895,1.41609198,4004.4,4004.3,0.7689]